bitfinex-derivatives/quotes_SOLF0:USTF0_20250105
["timestamp","ask_amount","ask_price","bid_price","bid_amount"]
[1736071083146,14.53161399,213.43,213.37,1.4559]
[1736071083643,2.3434,213.42,213.37,1.4559]
[1736071083943,14.53161399,213.43,213.37,1.4559]
[1736071084846,14.53161399,213.43,213.35,14.53161399]
[1736071085844,14.53161399,213.43,213.33,16.87591399]
[1736071086645,2.3435,213.41,213.35,14.53161399]
[1736071086845,2.8,213.44,213.32,2.8]
[1736071087046,2.8,213.44,213.37,14.53161399]
[1736071087249,2.3436,213.4,213.37,14.53161399]
[1736071087444,2.3436,213.4,213.37,14.62286481]
[1736071089645,2.3434,213.42,213.39,14.62286481]
[1736071091046,2.3435,213.41,213.39,14.62286481]
[1736071091736,2.8,213.46,213.39,14.62286481]
[1736071091942,14.62286481,213.44,213.36,14.62286481]
[1736071092743,14.62286481,213.42,213.29,2.8336]
[1736071092943,14.62286481,213.42,213.33,14.62286481]
[1736071093147,2.8,213.41,213.33,14.62286481]
[1736071094148,2.8,213.41,213.35,14.62286481]
[1736071095549,14.62286481,213.4,213.29,5.1783]
[1736071095747,14.62286481,213.4,213.32,14.62286481]
[1736071095942,2.3449,213.29,213.15,6.49582335]
[1736071096150,14.62286481,213.34,213.26,14.62286481]
[1736071096646,2.3447,213.3,213.24,2.3453]
[1736071096841,14.62286481,213.32,213.24,14.62286481]
[1736071098250,2.3444,213.33,213.23,2.3454]
[1736071098555,25.67531067,213.36,213.23,2.3454]
[1736071099748,2.3448,213.29,213.23,2.3454]
[1736071100750,2.3448,213.29,213.24,2.3453]
[1736071101854,25.67531067,213.36,213.21,4.1799]
[1736071102150,2.82,213.37,213.26,22.87531067]
[1736071102448,2.3442,213.34,213.3,2.3446]
[1736071102655,2.82,213.39,213.27,2.82]
[1736071103250,25.69531067,213.39,213.28,2.3448]
[1736071103646,25.69531067,213.39,213.24,22.87531067]
[1736071103848,25.69531067,213.39,213.27,2.345]
[1736071104145,2.3445,213.31,213.24,22.87531067]
[1736071105358,2.3445,213.31,213.26,2.345]
[1736071107059,2.3445,213.31,213.27,2.345]
[1736071110447,22.87531067,213.35,213.21,27.05521067]
[1736071110752,22.87531067,213.35,213.18,22.87531067]
[1736071110957,22.87531067,213.31,213.17,2.346]
[1736071111155,2.8,213.3,213.15,22.87531067]
[1736071111957,2.8,213.3,213.18,2.3459]
[1736071112253,2.8,213.3,213.15,22.87531067]
[1736071113461,2.3454,213.24,213.19,2.3458]
[1736071114457,2.3452,213.25,213.21,2.3456]
[1736071114760,2.8,213.3,213.19,2.8]
[1736071114961,2.8,213.3,213.2,1.5026]
[1736071115155,22.87531067,213.31,213.2,1.5026]
[1736071115361,25.67531067,213.31,213.2,1.5026]
[1736071116161,2.3451,213.27,213.22,2.3454]
[1736071117862,2.3451,213.27,213.23,2.3454]
[1736071118061,25.67531067,213.31,213.23,2.3454]
[1736071119160,2.345,213.28,213.24,2.3453]
[1736071119360,2.8,213.33,213.24,2.3453]
[1736071120070,2.3449,213.29,213.24,2.3453]
[1736071121370,2.3449,213.28,213.24,2.3453]
[1736071124677,14.64119132,213.27,213.23,2.3454]
[1736071124976,14.64119132,213.27,213.2,2.9352]
[1736071125176,14.64119132,213.25,213.21,2.3455]
[1736071125378,14.64119132,213.25,213.2,2.9352]
[1736071125870,3.74122676,213.31,213.2,17.57639132]
[1736071126075,14.64119132,213.28,213.2,17.57639132]
[1736071126976,2.3453,213.25,213.2,2.9352]
[1736071128477,2.3453,213.25,213.21,2.3456]
[1736071130173,14.64119132,213.26,213.2,2.9352]
[1736071130373,14.64119132,213.26,213.2,1.5026]
[1736071131577,2.3455,213.23,213.2,1.5026]
[1736071131978,2.3455,213.23,213.19,2.3458]
[1736071132978,2.3454,213.24,213.2,2.3457]
[1736071133179,2.8,213.29,213.2,14.64738916]
[1736071133578,16.08558916,213.3,213.22,14.64738916]
[1736071134278,16.08558916,213.3,213.22,16.99288916]
[1736071134677,3.74122676,213.31,213.24,14.64738916]
[1736071135274,17.44738916,213.33,213.24,14.64738916]
[1736071135481,2.3449,213.29,213.25,2.3451]
[1736071137784,2.3446,213.31,213.26,16.99248916]
[1736071138281,2.3446,213.31,213.26,14.64738916]
[1736071138583,2.3446,213.31,213.27,2.345]
[1736071138780,2.3446,213.31,213.26,14.64738916]
[1736071139085,2.3446,213.31,213.27,2.3449]
[1736071139581,2.3445,213.32,213.28,2.3449]
[1736071139979,3.58251936,213.35,213.28,14.64738916]
[1736071140478,18.22990852,213.35,213.26,14.64738916]
[1736071140679,3.58251936,213.35,213.25,14.64738916]
[1736071140883,14.64738916,213.34,213.25,14.64738916]
[1736071141087,14.64738916,213.32,213.25,14.64738916]
[1736071141590,14.64738916,213.32,213.24,2.3452]
[1736071142590,2.3449,213.28,213.24,2.3452]
[1736071144682,2.3449,213.28,213.23,14.64738916]
[1736071144683,2.345,213.27,213.23,16.99278916]
[1736071144889,14.64738916,213.28,213.21,14.64738916]
[1736071145090,14.64738916,213.28,213.21,17.42738916]
[1736071145287,14.64738916,213.28,213.21,2.78]
[1736071145585,14.64738916,213.28,213.22,2.3454]
[1736071145586,2.3452,213.26,213.22,2.3454]
[1736071145986,2.3452,213.26,213.23,2.3454]
[1736071146390,2.3446,213.31,213.25,14.64738916]
[1736071146688,2.3446,213.31,213.21,2.78]
[1736071146988,2.3446,213.31,213.25,14.64738916]
[1736071148188,2.3446,213.31,213.21,2.78]
[1736071148486,2.3446,213.31,213.27,2.345]
[1736071152193,3.58251936,213.35,213.25,14.64738916]
[1736071152494,2.3444,213.32,213.28,2.3449]
[1736071153595,2.3444,213.32,213.27,2.345]
[1736071155495,2.3447,213.3,213.26,2.3451]
[1736071155695,14.64738916,213.28,213.2,2.8638]
[1736071156195,14.64738916,213.24,213.17,1.5161]
[1736071156395,14.64738916,213.22,213.17,1.5161]
[1736071156593,16.99288916,213.22,213.17,3.8621]
[1736071156889,16.99288916,213.22,213.17,1.5161]
[1736071157793,2.3458,213.2,213.16,42.9011733]
[1736071158200,14.64738916,213.2,213.11,2.9323]
[1736071158496,16.99338916,213.18,213.11,5.7123]
[1736071159298,16.99338916,213.18,213.13,2.3464]
[1736071160200,2.346,213.18,213.13,2.3464]
[1736071161705,25.68253459,213.22,213.13,2.3464]
[1736071161902,2.3461,213.17,213.13,2.3464]
[1736071162900,25.68253459,213.22,213.11,5.7123]
[1736071163095,2.346,213.19,213.15,2.3463]
[1736071164203,22.90253459,213.25,213.11,5.7123]
[1736071164504,1.3966,213.29,213.11,5.7123]
[1736071164505,2.78,213.27,213.13,22.90253459]
[1736071164903,2.3454,213.24,213.19,2.3458]
[1736071167408,22.90253459,213.25,213.14,1.5161]
[1736071167901,2.346,213.19,213.14,3.8625]
[1736071168503,2.74,213.23,213.14,3.8625]
[1736071168808,2.346,213.18,213.14,3.8625]
[1736071169105,2.346,213.18,213.14,1.5161]
[1736071169407,2.3461,213.17,213.14,1.5161]
[1736071170407,2.74,213.23,213.11,1.5209]
[1736071170605,2.3464,213.15,213.1,2.3469]
[1736071170899,24.32513459,213.22,213.1,2.3469]
[1736071171099,2.3464,213.15,213.1,2.3469]
[1736071174009,2.3464,213.15,213.11,2.3467]
[1736071178312,2.74,213.2,213.08,2.74]
[1736071178610,2.3464,213.15,213.1,2.3468]
[1736071180803,2.3464,213.15,213.11,2.3467]
[1736071181114,1.4226,213.22,213.13,14.65940865]
[1736071181415,14.65940865,213.2,213.13,14.65940865]
[1736071181614,14.65940865,213.2,213.14,2.3464]
[1736071182811,1.4226,213.22,213.14,2.3464]
[1736071182812,14.65940865,213.18,213.14,2.3464]
[1736071183117,14.65940865,213.18,213.13,2.3465]
[1736071184516,2.3462,213.17,213.13,2.3465]
[1736071185214,2.3462,213.17,213.12,2.3465]
[1736071185409,2.3462,213.17,213.11,16.04630865]
[1736071186417,2.3462,213.17,213.13,2.3464]
[1736071188219,14.65940865,213.18,213.13,2.3464]
[1736071188422,2.3462,213.16,213.13,2.3464]
[1736071190220,14.65638928,213.19,213.13,2.3464]
[1736071190411,2.3461,213.17,213.13,2.3464]
[1736071191321,2.3461,213.17,213.11,16.04328928]
[1736071191520,2.3461,213.17,213.14,2.3463]
[1736071192019,2.346,213.18,213.15,2.3463]
[1736071192620,2.74,213.24,213.15,14.65638928]
[1736071192821,14.65638928,213.23,213.15,14.65638928]
[1736071193414,2.3455,213.22,213.18,2.3459]
[1736071193615,2.3455,213.22,213.17,14.65638928]
[1736071194119,2.3454,213.23,213.2,2.3457]
[1736071194319,2.3454,213.23,213.17,14.65638928]
[1736071194718,14.65638928,213.25,213.17,14.65638928]
[1736071194921,17.00158928,213.25,213.17,14.65638928]
[1736071195523,2.3452,213.25,213.19,14.65638928]
[1736071195727,1.4017,213.29,213.19,14.65638928]
[1736071195926,14.65638928,213.27,213.19,17.00218928]
[1736071197518,2.3453,213.24,213.19,17.00218928]
[1736071197717,14.65638928,213.25,213.2,2.3456]
[1736071199020,17.00158928,213.25,213.21,2.3456]
[1736071199219,14.65638928,213.25,213.19,14.65638928]
[1736071199826,17.00158928,213.25,213.2,2.3457]
[1736071200226,17.00158928,213.25,213.19,14.65638928]
[1736071200424,2.3452,213.25,213.19,14.65638928]
[1736071200630,2.3452,213.25,213.21,2.3456]
[1736071202831,166.71321858,213.35,213.19,2.9642]
[1736071202832,14.65638928,213.34,213.24,14.65638928]
[1736071203035,175.27220786,213.35,213.28,14.65638928]
[1736071203436,2.344,213.36,213.31,2.3445]
[1736071203640,14.65638928,213.38,213.32,2.7]
[1736071204136,2.3439,213.37,213.32,2.7]
[1736071204444,14.65638928,213.34,213.32,2.7]
[1736071204842,2.3443,213.33,213.32,2.7]
[1736071207548,17.00058928,213.34,213.32,2.7]
[1736071208348,2.3442,213.34,213.32,2.7]
[1736071209547,14.65638928,213.38,213.32,2.7]
[1736071210143,257.22826127,213.45,213.33,14.65638928]
[1736071210343,14.65638928,213.42,213.35,14.65638928]
[1736071211446,2.3435,213.41,213.36,2.3439]
[1736071211646,2.3435,213.41,213.37,2.7]
[1736071212949,2.3435,213.41,213.37,17.35638928]
[1736071214453,2.3433,213.43,213.39,14.65638928]
[1736071215457,2.3432,213.44,213.39,14.65638928]
[1736071216151,14.65638928,213.48,213.39,14.65638928]
[1736071216551,14.65638928,213.48,213.39,17.00008928]
[1736071217154,2.343,213.45,213.41,14.65638928]
[1736071217351,2.343,213.45,213.42,2.7]
[1736071218251,2.343,213.45,213.41,14.65638928]
[1736071218451,2.343,213.46,213.42,2.7]
[1736071219152,2.343,213.46,213.43,14.65638928]
[1736071219856,14.65638928,213.51,213.43,14.65638928]
[1736071220054,14.65638928,213.49,213.42,2.7]
[1736071220554,2.3428,213.47,213.42,2.7]
[1736071220747,14.65638928,213.47,213.42,2.7]
[1736071221254,14.65638928,213.47,213.38,2.9236]
[1736071221447,14.65638928,213.47,213.39,2.7]
[1736071221647,14.65638928,213.47,213.4,2.7]
[1736071222155,4.0831,213.54,213.42,14.65638928]
[1736071222547,2.3429,213.46,213.42,14.65638928]
[1736071222751,2.3429,213.46,213.42,16.99968928]
[1736071224263,2.3429,213.46,213.42,14.65638928]
[1736071224457,14.65638928,213.48,213.43,2.7]
[1736071224853,14.65638928,213.46,213.38,2.9236]
[1736071225161,14.65638928,213.46,213.38,20.27998928]
[1736071225361,2.3429,213.47,213.38,20.27998928]
[1736071225563,14.65638928,213.47,213.38,20.27998928]
[1736071226067,2.3434,213.42,213.38,20.27998928]
[1736071228054,2.3434,213.42,213.4,14.65638928]
[1736071230463,2.3426,213.49,213.44,2.3431]
[1736071230663,1.3831,213.54,213.46,14.65638928]
[1736071231170,1.3831,213.54,213.44,2.68]
[1736071231469,2.3428,213.48,213.46,14.65638928]
[1736071235076,1.3831,213.54,213.46,14.65638928]
[1736071235369,5.02554672,213.56,213.49,14.65638928]
[1736071236573,2.3423,213.51,213.49,14.65638928]
[1736071238272,14.65638928,213.55,213.47,14.65638928]
[1736071239474,14.65638928,213.53,213.46,2.68]
[1736071239975,2.3428,213.47,213.46,2.68]
[1736071241673,2.3428,213.48,213.46,2.68]
[1736071242176,3.50274672,213.56,213.46,17.33638928]
[1736071242373,18.159136,213.56,213.48,14.65638928]
[1736071242771,2.3424,213.51,213.46,19.67928928]
[1736071242968,14.65638928,213.54,213.46,2.68]
[1736071243172,14.65638928,213.54,213.46,17.33638928]
[1736071243972,2.3426,213.49,213.46,17.33638928]
[1736071245673,2.3427,213.48,213.46,17.33638928]
[1736071246475,2.3428,213.47,213.42,2.3432]
[1736071246674,2.3428,213.47,213.43,17.33638928]
[1736071248479,2.3428,213.47,213.43,19.67958928]
[1736071248879,14.65638928,213.52,213.43,17.33638928]
[1736071249076,2.3429,213.46,213.43,17.33638928]
[1736071252281,2.3429,213.46,213.43,5.0232]
[1736071252476,2.3429,213.46,213.43,19.67958928]
[1736071253283,14.65638928,213.48,213.4,17.33638928]
[1736071253985,1.4899,213.51,213.44,14.65638928]
[1736071254175,14.65638928,213.51,213.44,14.65638928]
[1736071254380,160.61581858,213.53,213.44,14.65638928]
[1736071254584,14.65638928,213.53,213.44,16.99948928]
[1736071254882,14.65638928,213.53,213.46,14.65638928]
[1736071255073,2.3424,213.51,213.46,16.99928928]
[1736071255474,2.3424,213.51,213.46,14.65638928]
[1736071255675,14.65638928,213.54,213.46,14.65638928]
[1736071255676,14.65638928,213.54,213.47,2.3428]
[1736071255875,2.3423,213.52,213.47,2.3428]
[1736071256779,14.65638928,213.54,213.47,2.3428]
[1736071256985,2.3424,213.51,213.47,2.3428]
[1736071257982,2.3424,213.51,213.46,14.65638928]
[1736071258179,2.3424,213.51,213.48,14.65638928]
[1736071258379,18.159136,213.56,213.48,14.65638928]
[1736071258578,2.3422,213.53,213.5,14.65638928]
[1736071259180,2.3422,213.53,213.5,17.33638928]
[1736071261089,18.159136,213.56,213.5,2.68]
[1736071261587,14.65638928,213.54,213.5,2.68]
[1736071262284,14.65638928,213.51,213.43,2.68]
[1736071262485,14.65638928,213.49,213.44,2.68]
[1736071262989,2.3428,213.48,213.44,2.68]
[1736071263288,14.65638928,213.49,213.44,2.68]
[1736071263483,14.65638928,213.47,213.41,2.68]
[1736071264286,14.65638928,213.47,213.4,16.99978928]
[1736071264487,2.343,213.45,213.4,19.67978928]
[1736071265191,2.343,213.45,213.41,2.3434]
[1736071265990,14.65638928,213.48,213.42,14.65638928]
[1736071266191,2.3426,213.49,213.44,14.65638928]
[1736071266394,14.65638928,213.51,213.44,14.65638928]
[1736071266697,14.65638928,213.53,213.44,14.65638928]
[1736071267686,2.3423,213.51,213.46,14.65638928]
[1736071267894,14.65638928,213.53,213.45,2.68]
[1736071268087,14.65638928,213.51,213.43,17.33638928]
[1736071268286,14.65638928,213.51,213.43,19.67958928]
[1736071268685,14.65638928,213.51,213.43,17.33638928]
[1736071268888,2.3427,213.48,213.44,2.3431]
[1736071269288,2.3427,213.48,213.43,17.33638928]
[1736071269484,2.3427,213.48,213.43,19.67958928]
[1736071270384,2.3427,213.48,213.45,14.65638928]
[1736071270797,14.65638928,213.51,213.45,14.65638928]
[1736071270999,14.65638928,213.55,213.47,14.65638928]
[1736071271600,14.65638928,213.53,213.44,2.888]
[1736071271897,14.65638928,213.53,213.44,17.54438928]
[1736071272098,14.65638928,213.53,213.44,20.22438928]
[1736071272497,2.3426,213.49,213.44,22.56738928]
[1736071274298,2.3426,213.49,213.46,14.65638928]
[1736071274495,2.3425,213.5,213.46,14.65638928]
[1736071275502,2.3426,213.49,213.46,14.65638928]
[1736071277696,3.50274672,213.56,213.48,14.65638928]
[1736071277900,18.159136,213.56,213.47,14.65638928]
[1736071278102,14.65638928,213.54,213.47,14.65638928]
[1736071279006,14.65638928,213.54,213.47,16.99908928]
[1736071279807,2.3422,213.53,213.49,16.99898928]
[1736071281502,2.3418,213.56,213.51,16.99868928]
[1736071283599,2.3418,213.56,213.53,14.65638928]
[1736071284912,2.3419,213.55,213.52,14.65638928]
[1736071286014,408.5444161,213.65,213.51,5.0223]
[1736071286015,2.3417,213.58,213.54,14.65638928]
[1736071287211,160.61581858,213.68,213.56,14.65638928]
[1736071287410,14.65638928,213.65,213.56,17.33638928]
[1736071288513,2.3413,213.61,213.56,19.67808928]
[1736071289017,2.3413,213.61,213.58,14.65638928]
[1736071289216,2.3414,213.6,213.56,17.33638928]
[1736071290106,2.3415,213.59,213.56,17.33638928]
[1736071290512,14.65638928,213.63,213.56,2.68]
[1736071290713,2.3417,213.57,213.56,2.68]
[1736071290913,14.65638928,213.57,213.5,14.65638928]
[1736071291113,14.65638928,213.57,213.5,17.33638928]
[1736071291410,14.65638928,213.57,213.5,14.65638928]
[1736071291612,2.3422,213.53,213.49,14.65638928]
[1736071292711,14.65638928,213.55,213.49,14.65638928]
[1736071292917,14.65638928,213.55,213.47,14.65638928]
[1736071293106,2.3424,213.51,213.47,14.65638928]
[1736071293307,2.68,213.58,213.47,14.65638928]
[1736071293308,14.65638928,213.53,213.47,14.65638928]
[1736071293919,2.3423,213.52,213.47,14.65638928]
[1736071294119,14.65638928,213.53,213.47,14.65638928]
[1736071294520,2.3425,213.5,213.47,14.65638928]
[1736071295319,14.65638928,213.53,213.47,14.65638928]
[1736071295521,2.3426,213.49,213.47,14.65638928]
[1736071295716,2.3426,213.49,213.46,2.68]
[1736071296423,14.65638928,213.53,213.46,2.68]
[1736071297929,6.49562693,213.58,213.46,2.68]
[1736071298126,14.65638928,213.54,213.45,17.52408928]
[1736071298521,2.3426,213.49,213.45,17.52408928]
[1736071299729,2.3427,213.48,213.45,14.65638928]
[1736071300128,2.3427,213.48,213.44,2.3431]
[1736071300336,2.3427,213.48,213.45,14.65638928]
[1736071304227,14.65638928,213.46,213.37,2.9189]
[1736071304438,14.65638928,213.44,213.37,2.9189]
[1736071304629,2.3437,213.39,213.35,17.00048928]
[1736071304829,2.3437,213.39,213.35,14.65638928]
[1736071305530,2.3437,213.39,213.33,2.68]
[1736071305727,2.3437,213.39,213.35,14.65638928]
[1736071306634,14.65638928,213.43,213.35,17.00048928]
[1736071306831,2.3436,213.4,213.35,17.00048928]
[1736071309534,2.3432,213.44,213.39,14.65638928]
[1736071309733,2.3432,213.44,213.41,14.65638928]
[1736071310333,2.3432,213.43,213.41,14.65638928]
[1736071312033,2.3434,213.42,213.39,14.65638928]
[1736071315135,2.3438,213.38,213.34,6.7221]
[1736071315335,2.3438,213.38,213.34,4.3779]
[1736071316438,2.3438,213.38,213.35,14.65638928]
[1736071316834,14.65638928,213.44,213.37,14.65638928]
[1736071317035,2.68,213.45,213.39,14.65638928]
[1736071317640,2.3434,213.42,213.39,14.65638928]
[1736071320435,2.3428,213.47,213.4,2.3436]
[1736071320640,2.68,213.5,213.41,14.65638928]
[1736071320941,17.33638928,213.5,213.43,14.65638928]
[1736071322343,14.65638928,213.5,213.43,14.65638928]
[1736071322645,14.65638928,213.48,213.41,14.65638928]
[1736071323038,2.3431,213.45,213.41,14.65638928]
[1736071324540,14.65638928,213.46,213.38,2.3438]
[1736071324741,14.65638928,213.44,213.37,17.33638928]
[1736071325645,2.3435,213.41,213.37,17.33638928]
[1736071326239,2.3436,213.4,213.35,17.00048928]
[1736071326443,14.65638928,213.4,213.34,4.3779]
[1736071326840,2.344,213.37,213.34,4.3779]
[1736071327141,2.344,213.37,213.34,2.9317]
[1736071327542,14.65638928,213.4,213.26,1.4331]
[1736071327842,14.65638928,213.36,213.29,17.00108928]
[1736071328445,2.3443,213.34,213.29,17.00108928]
[1736071330445,2.3443,213.34,213.3,2.3447]
[1736071331348,14.65638928,213.36,213.29,14.65638928]
[1736071331549,2.3443,213.33,213.29,14.65638928]
[1736071332347,2.3442,213.34,213.29,17.00108928]
[1736071333954,2.3443,213.33,213.29,17.00108928]
[1736071334250,2.3443,213.33,213.29,14.65638928]
[1736071334445,2.68,213.39,213.27,1.3999]
[1736071334648,14.65638928,213.34,213.27,1.3999]
[1736071334848,14.65638928,213.34,213.26,22.55948928]
[1736071335248,2.3446,213.31,213.26,22.55948928]
[1736071335748,14.65638928,213.34,213.26,5.2231]
[1736071335947,2.3447,213.3,213.26,3.79]
[1736071336148,14.65638928,213.34,213.26,1.445]
[1736071336349,14.65638928,213.32,213.23,5.0253]
[1736071336654,2.3449,213.28,213.23,19.68168928]
[1736071337156,2.3449,213.28,213.25,14.65638928]
[1736071337756,14.65638928,213.32,213.25,14.65638928]
[1736071337954,2.3448,213.29,213.25,14.65638928]
[1736071338456,2.68,213.34,213.25,14.65638928]
[1736071338457,17.33638928,213.34,213.25,14.65638928]
[1736071338649,3.83275989,213.39,213.27,14.65638928]
[1736071338953,14.65638928,213.37,213.29,14.65638928]
[1736071339146,2.3442,213.34,213.29,14.65638928]
[1736071340550,2.3442,213.34,213.29,17.00108928]
[1736071341751,2.3443,213.33,213.29,14.65638928]
[1736071342151,14.65638928,213.33,213.21,1.5234]
[1736071342361,2.3449,213.28,213.24,14.65638928]
[1736071343855,2.3448,213.29,213.24,17.00168928]
[1736071345750,2.3444,213.32,213.28,14.65638928]
[1736071345950,14.65638928,213.37,213.3,14.65638928]
[1736071346156,2.68,213.38,213.3,14.65638928]
[1736071346356,17.33638928,213.38,213.3,14.65638928]
[1736071347153,2.3443,213.34,213.3,14.65638928]
[1736071347551,14.65638928,213.36,213.21,1.5234]
[1736071347754,2.3447,213.3,213.25,2.3452]
[1736071348057,2.3447,213.3,213.25,17.00158928]
[1736071348261,22.87531189,213.36,213.22,2.68]
[1736071348466,2.3448,213.29,213.24,2.3453]
[1736071348756,2.68,213.38,213.23,22.87531189]
[1736071348954,2.3444,213.33,213.28,2.3448]
[1736071349259,6.51275989,213.39,213.27,2.68]
[1736071349559,3.83275989,213.39,213.28,1.4091]
[1736071349758,3.83275989,213.39,213.28,2.9143]
[1736071350059,2.3441,213.35,213.31,2.3445]
[1736071350262,2.3441,213.35,213.28,2.9143]
[1736071350864,2.344,213.36,213.28,2.9143]
[1736071351564,2.3442,213.35,213.31,2.3445]
[1736071351963,3.83275989,213.39,213.28,2.9143]
[1736071352163,2.3441,213.35,213.31,2.3445]
[1736071353867,2.344,213.36,213.29,2.3447]
[1736071354060,3.83275989,213.39,213.28,2.9143]
[1736071354665,2.3441,213.36,213.32,2.3443]
[1736071354864,3.83275989,213.39,213.28,2.9143]
[1736071355265,2.344,213.37,213.32,2.3443]
[1736071355459,2.344,213.37,213.28,2.9143]
[1736071355664,3.83275989,213.39,213.29,22.87531189]
[1736071355861,6.17645989,213.39,213.35,2.3441]
[1736071358267,6.17645989,213.39,213.32,2.68]
[1736071358565,2.3438,213.38,213.32,2.68]
[1736071358769,3.83275989,213.39,213.29,24.37531189]
[1736071358961,3.83275989,213.39,213.3,2.68]
[1736071359158,2.3441,213.36,213.26,22.87531189]
[1736071359358,3.83275989,213.39,213.26,22.87531189]
[1736071359564,3.83275989,213.39,213.26,25.55531189]
[1736071359966,3.83275989,213.39,213.28,2.3448]
[1736071360773,2.3444,213.32,213.28,2.3448]
[1736071361177,2.3444,213.32,213.27,2.345]
[1736071361474,2.3444,213.32,213.26,2.68]
[1736071362068,26.70807178,213.39,213.23,22.87531189]
[1736071362267,22.87531189,213.36,213.21,4.3985]
[1736071362468,22.87531189,213.36,213.22,2.68]
[1736071362668,22.87531189,213.36,213.25,2.3452]
[1736071362868,22.87531189,213.36,213.22,2.68]
[1736071363168,2.3447,213.3,213.24,2.3453]
[1736071363876,2.3449,213.29,213.23,2.3454]
[1736071364074,2.3449,213.29,213.21,7.0785]
[1736071364873,2.3449,213.29,213.24,2.3453]
[1736071365073,2.3449,213.28,213.24,2.3453]
[1736071365273,25.55531189,213.33,213.22,2.68]
[1736071365972,25.55531189,213.33,213.23,2.3454]
[1736071366172,25.55531189,213.33,213.19,2.68]
[1736071366173,2.345,213.27,213.19,2.68]
[1736071366682,25.55531189,213.33,213.19,2.68]
[1736071366872,25.55531189,213.33,213.2,2.7609]
[1736071367267,2.3449,213.28,213.23,2.3454]
[1736071368080,2.3449,213.28,213.2,2.7609]
[1736071368469,25.55531189,213.33,213.2,2.7609]
[1736071368978,2.3451,213.27,213.2,2.7609]
[1736071369177,2.68,213.33,213.2,2.7609]
[1736071369377,2.68,213.33,213.22,2.3455]
[1736071369584,2.3449,213.28,213.22,2.3455]
[1736071369778,2.68,213.33,213.21,22.87531189]
[1736071370176,2.68,213.33,213.2,2.7609]
[1736071370177,14.6388526,213.33,213.2,2.7609]
[1736071370485,14.6388526,213.33,213.25,14.6388526]
[1736071371875,2.3447,213.3,213.24,5.0253]
[1736071372075,14.6388526,213.33,213.24,5.0253]
[1736071372076,14.6388526,213.33,213.24,19.6641526]
[1736071372272,14.6388526,213.27,213.2,2.7609]
[1736071372477,2.3458,213.2,213.09,2.68]
[1736071372678,2.3458,213.2,213.15,14.6388526]
[1736071373482,2.3458,213.2,213.14,2.3464]
[1736071373679,2.3458,213.2,213.15,14.6388526]
[1736071374380,2.3458,213.2,213.15,16.9851526]
[1736071375384,2.3458,213.2,213.15,2.3463]
[1736071375586,2.3458,213.2,213.16,14.6388526]
[1736071375880,2.68,213.22,213.1,4.1396]
[1736071376089,2.346,213.18,213.14,14.6388526]
[1736071376488,2.3458,213.2,213.16,14.6388526]
[1736071376784,14.6388526,213.26,213.18,14.6388526]
[1736071377084,2.68,213.27,213.22,14.6388526]
[1736071377483,2.3451,213.26,213.22,14.6388526]
[1736071377991,2.3452,213.25,213.21,14.6388526]
[1736071378488,2.3452,213.25,213.19,2.3458]
[1736071380183,2.3452,213.25,213.2,2.3457]
[1736071380684,2.3452,213.25,213.17,24.36009927]
[1736071380685,2.3449,213.28,213.21,2.3455]
[1736071380879,2.68,213.33,213.23,22.88279927]
[1736071381388,2.68,213.33,213.24,1.4617]
[1736071381694,28.13795916,213.39,213.24,1.4617]
[1736071381988,2.68,213.38,213.26,22.88279927]
[1736071382190,2.68,213.38,213.27,4.072]
[1736071382377,2.68,213.38,213.27,5.4806]
[1736071383389,2.3441,213.35,213.31,2.3445]
[1736071383589,2.3441,213.35,213.27,5.4806]
[1736071383792,3.83275989,213.39,213.27,5.4806]
[1736071383992,2.344,213.36,213.32,2.3444]
[1736071384193,3.83275989,213.39,213.32,2.3444]
[1736071385592,2.3439,213.37,213.32,2.3444]
[1736071387190,3.83275989,213.39,213.27,5.4806]
[1736071387394,3.83275989,213.39,213.3,2.3445]
[1736071387790,3.83275989,213.39,213.27,5.4806]
[1736071388189,3.83275989,213.39,213.32,22.88279927]
[1736071388389,2.3435,213.41,213.36,2.344]